Cogmind - Beta 9.4 @@@ ROGUE MODE // 2020.02.04 @ 12:49:29 Player: alice_fexa Result: Self-destructed Performance ------------- Evolutions (4) 2000 Regions Visited (12) 2400 Robots Destroyed (97) 485 Value Destroyed (2518) 2518 Prototype IDs (19) 380 Alien Tech Used (1) 200 Bonus (370) 370 TOTAL SCORE: 8353 Bonus ------- High Alert Combat Kills 11 Follower Combat Kills 74 Met Data Miner 300 Met Imprinter 300 Friendly Fire -315 Cogmind --------- Core Integrity 768/850 Matter 250/300 Energy 77/160 System Corruption 0% Temperature Cool (0) Movement Hovering (106) Ox1 Location -6/Zion Parts ------- > --- POWER (2) -------- Light Nuclear Core > --- PROPULSION (4) --- Aerolev Unit Aerolev Unit > --- UTILITY (7) ------ Advanced Heat Sink Large Storage Unit Advanced Signal Interpreter Advanced Melee Analysis Suite Hardened Medium Armor Plating Advanced Hacking Suite > --- WEAPON (3) ------- Plasma Sword > --- INVENTORY (10) --- Nuclear Pulse Thruster Long-range Sensor Array Shock Rifle Improved EM Pulse Cannon Proton Missile Launcher Plasma Sword Spear Spear Peak State ------------ > --- POWER ------------ Light Nuclear Core Light Nuclear Core > --- PROPULSION ------- Airjet Aerolev Unit Aerolev Unit Aerolev Unit > --- UTILITY ---------- Advanced Heat Sink Large Storage Unit Long-range Sensor Array Advanced Signal Interpreter Advanced Melee Analysis Suite Hardened Medium Armor Plating Advanced Hacking Suite > --- WEAPON ----------- Power Sword Plasma Sword Spear > --- INVENTORY -------- Light Nuclear Core Nuclear Pulse Thruster Biomechanical Wings Advanced Melee Analysis Suite Shock Rifle Improved EM Pulse Cannon EMP Blaster Proton Missile Launcher Plasma Sword Spear [Rating: 68] Favorites ----------- Power Light Nuclear Core Engine Improved Deuterium Engine Power Core Light Nuclear Core Propulsion Aerolev Unit Treads Light Treads Wheel Wheel Hover Unit Aerolev Unit Flight Unit Biomechanical Wings Utility Large Storage Unit Device Long-range Sensor Array Storage Large Storage Unit Processor Advanced Signal Interpreter Hackware Hacking Suite Protection Hardened Medium Armor Plating Weapon Katana Energy Gun EM Shotgun Energy Cannon Advanced Beam Cannon Ballistic Gun Light Assault Rifle Launcher Proton Missile Launcher Slashing Weapon Katana Piercing Weapon Spear Build | -11 -10 -9 -8 -7 -7 -7 -7 -6 -6 -6 -6 -6 ------- Run | Scr Mat Mat Mat Fac Low Low Dat Pro Fac Low Low Zio Slots Evolved 8 | . . 2 2 2 . . . . 2 . . . Power 1 | . . . . 1 . . . . . . . . Propulsion 2 | . . 1 . . . . . . 1 . . . Utility 5 | . . 1 2 1 . . . . 1 . . . Weapon . | . . . . . . . . . . . . . Parts Attached 120 | 6 8 13 49 20 . 1 . 1 8 . 9 5 Power 15 | 1 2 . 9 2 . . . . . . . 1 Engine 6 | 1 . . 5 . . . . . . . . . Core 9 | . 2 . 4 2 . . . . . . . 1 Reactor . | . . . . . . . . . . . . . Propulsion 33 | 2 . 6 18 3 . . . . 3 . . 1 Treads 18 | 2 . 3 13 . . . . . . . . . Leg . | . . . . . . . . . . . . . Wheel 7 | . . 3 4 . . . . . . . . . Hover 6 | . . . 1 3 . . . . 2 . . . Flight 2 | . . . . . . . . . 1 . . 1 Utility 36 | 1 3 2 8 13 . 1 . 1 3 . 2 2 Device 13 | . 1 2 2 6 . . . 1 . . 1 . Storage 8 | 1 2 . 1 4 . . . . . . . . Processor 4 | . . . . 1 . 1 . . 1 . . 1 Hackware 3 | . . . 1 2 . . . . . . . . Protection 8 | . . . 4 . . . . . 2 . 1 1 Artifact . | . . . . . . . . . . . . . Weapon 36 | 2 3 5 14 2 . . . . 2 . 7 1 Energy Gun 6 | 1 1 1 2 1 . . . . . . . . Energy Cannon 5 | . . 1 4 . . . . . . . . . Ballistic Gun 10 | 1 2 2 5 . . . . . . . . . Ballistic Cannon . | . . . . . . . . . . . . . Launcher 6 | . . 1 1 . . . . . . . 3 1 Special Weapon . | . . . . . . . . . . . . . Impact Weapon . | . . . . . . . . . . . . . Slashing Weapon 6 | . . . 2 1 . . . . 1 . 2 . Piercing Weapon 3 | . . . . . . . . . 1 . 2 . Special Melee Weapon . | . . . . . . . . . . . . . Unidentified Prototypes 3 | . . . 1 . . . . . 1 . 1 . Parts Lost 14 | . 1 . 7 . . . . . . . . 6 Power 5 | . . . 3 . . . . . . . . 2 Propulsion 3 | . . . . . . . . . . . . 3 Utility 1 | . . . . . . . . . . . . 1 Weapon 5 | . 1 . 4 . . . . . . . . . Highest Loss Streak 6 | . 1 . 3 . . . . . . . . 6 Average Slot Usage (%) 98 | . 99 100 98 94 100 100 100 100 100 100 97 90 Engine 2 | . 5 . 5 . . . . . . . . . Core 9 | . 8 11 2 14 15 15 15 15 13 13 12 11 Treads 11 | . 28 22 17 . . . . . . . . . Wheel 3 | . . 11 8 . . . . . . . . . Hover 11 | . . . . 22 23 23 23 23 25 26 25 23 Device 10 | . 5 11 9 9 15 15 15 15 13 13 12 10 Storage 13 | . 22 22 18 7 7 7 7 7 6 6 6 6 Processor 4 | . . . . 6 7 7 7 7 6 13 12 12 Hackware 7 | . . . 9 14 15 15 15 15 12 6 6 6 Protection 4 | . . . 9 4 . . . . 6 6 6 5 Energy Gun 3 | . 14 7 1 1 . . . . . . . . Energy Cannon 2 | . . 3 7 . . . . . . . . . Ballistic Gun 5 | . 14 11 8 . . . . . . . . . Slashing Weapon 4 | . . . . 7 15 15 15 15 12 6 5 6 Naked Turns . | . . . . . . . . . . . . . Heaviest Build 69 | 12 55 61 69 49 33 33 33 33 42 42 48 42 Greatest Support 42 | 40 40 16 40 33 33 33 33 33 42 42 42 42 Greatest Overweight (x) 6 | . 1 6 6 1 . . . . 1 . 1 1 Average Overweight (x) 1 | . . 5 4 . . . . . . . . . Largest Inventory Capacity 22 | 6 18 18 22 22 10 10 10 10 10 10 10 10 Average Capacity 13 | 5 14 18 18 9 10 10 10 10 10 10 10 10 Most Carried 18 | 4 18 18 18 17 10 10 10 10 10 10 10 10 Average Carried 13 | 2 12 17 17 9 10 10 10 10 9 10 10 9 Final Capacity 18 | 6 18 18 18 10 10 10 10 10 10 10 10 10 Final Carried 18 | 4 18 18 18 10 10 10 10 10 10 10 10 8 Class Distribution -------------------- 55% | Mutant 29% | Hacker-Mutant 15% | Scavenger-Mutant Dominant Class ---------------- Mutant | -10/Materials Mutant | -9/Materials Scavenger-Mutant | -8/Materials Hacker-Mutant | -7/Factory Hacker-Mutant | -7/Lower Caves Hacker-Mutant | -7/Lower Caves Hacker-Mutant | -7/Data Miner Hacker-Mutant | -6/Proximity Caves Hacker-Mutant | -6/Factory Mutant | -6/Lower Caves Mutant | -6/Lower Caves Mutant | -6/Zion Resources | -11 -10 -9 -8 -7 -7 -7 -7 -6 -6 -6 -6 -6 ----------- Run | Scr Mat Mat Mat Fac Low Low Dat Pro Fac Low Low Zio Matter Collected 1986 | 209 188 273 869 216 . 10 . . 90 . 131 . Remotely . | . . . . . . . . . . . . . Salvage Created 4090 | . 715 934 1739 173 . . . . 157 83 179 110 Parts 242 | . 53 64 97 8 . . . . 2 . 10 8 Haulers Intercepted 8 | . 1 3 4 . . . . . . . . . Recyclers Shooed 2 | . 1 . . 1 . . . . . . . . Parts Field Recycled . | . . . . . . . . . . . . . Retrieved Matter . | . . . . . . . . . . . . . Parts Self-Destructed 11 | . . . . . . . . 3 . . 8 . Prevented 8 | . . . . . . . . . . . 8 . Kills | -11 -10 -9 -8 -7 -7 -7 -7 -6 -6 -6 -6 -6 ------- Run | Scr Mat Mat Mat Fac Low Low Dat Pro Fac Low Low Zio Combat Hostiles Destroyed 58 | . 11 14 29 . . . . . . . 3 1 Guns 31 | . 11 10 10 . . . . . . . . . Cannons 14 | . . . 14 . . . . . . . . . AOE 12 | . . 4 5 . . . . . . . 2 1 Classes Destroyed 13 | . 5 3 3 . . . . . . . . 2 Worker 3 | . . . 1 2 . . . . . . . . Builder 2 | . . 2 . . . . . . . . . . Hauler 8 | . 1 3 4 . . . . . . . . . Recycler 10 | . 4 2 1 2 . . . . 1 . . . Operator 3 | . . 2 1 . . . . . . . . . Watcher 10 | . 2 4 4 . . . . . . . . . Swarmer 14 | . 5 4 4 . . . . . . . 1 . Grunt 33 | . 6 9 17 . . . . . . . 1 . Brawler 1 | . . . 1 . . . . . . . . . Sentry 8 | . . 1 6 . . . . . . . 1 . Hunter 1 | . . . 1 . . . . . . . . . Zionite 2 | . . . . . . . . . . . . 2 Packrat 1 | . . . . . . . . . . 1 . . Mutant 1 | . . . . . . . . . . . . 1 Best Kill Streak 10 | . 4 6 10 2 . . . . 1 . 3 3 Combat Bots Only 8 | . 3 4 8 . . . . . . . 3 1 Max Kills in Single Turn 6 | . 1 6 2 1 . . . . 1 1 1 1 Gunslinging 1 | . . 1 . . . . . . . . . . Exploded 4 | . . 4 2 . . . . . . . 1 1 Melee . | . . . . . . . . . . . . . Uniques/NPCs Destroyed . | . . . . . . . . . . . . . Combat | -11 -10 -9 -8 -7 -7 -7 -7 -6 -6 -6 -6 -6 -------- Run | Scr Mat Mat Mat Fac Low Low Dat Pro Fac Low Low Zio Damage Taken 3421 | . 515 313 1639 15 . . . . 38 . 58 843 Core 390 | . 63 52 193 . . . . . . . . 82 Absorbed by Shields . | . . . . . . . . . . . . . Core Remaining (%) 85 | 100 74 87 64 . . . . 100 . . . . Volleys Fired 235 | . 61 60 103 2 . . . . . . 4 5 Largest 2 | . 2 2 2 1 . . . . . . 2 1 Hottest 93 | . 70 88 93 23 . . . . . . 72 39 Shots Fired 455 | . 122 117 202 2 . . . . . . 7 5 Gun 347 | . 122 112 111 2 . . . . . . . . Cannon 92 | . . 4 88 . . . . . . . . . Launcher 16 | . . 1 3 . . . . . . . 7 5 Special . | . . . . . . . . . . . . . Kinetic 222 | . 61 59 100 2 . . . . . . . . Thermal 150 | . 61 11 78 . . . . . . . . . Explosive 4 | . . 1 3 . . . . . . . . . Electromagnetic 79 | . . 46 21 . . . . . . . 7 5 Robot Hit Streak 21 | . 20 21 20 1 . . . . . . 3 5 Robot Miss Streak 6 | . 4 3 6 1 . . . . . . 1 . Penetration Max . | . . . . . . . . . . . . . Secondary Targets 3 | . 2 1 . . . . . . . . . . Max Gunslinging Chain 1 | . 1 1 . . . . . . . . . . Shots Hit Robots 339 | . 92 86 142 4 . . . . 1 1 4 9 Core Hits 166 | . 34 45 70 4 . . . . 1 1 4 7 Critical Hits 14 | . . 1 13 . . . . . . . . . Critical Kills 7 | . . . 7 . . . . . . . . . Critical Parts Destroyed 7 | . . 1 6 . . . . . . . . . Melee Attacks 95 | . . . 2 17 . 11 . 11 22 5 10 17 Impact . | . . . . . . . . . . . . . Slashing 81 | . . . 2 17 . 11 . 11 21 1 6 12 Piercing 14 | . . . . . . . . . 1 4 4 5 Sneak Attacks 6 | . . . . 3 . . . . 1 1 . 1 Combat Hostiles . | . . . . . . . . . . . . . Follow-up Attacks 1 | . . . . . . . . . . . . 1 Damage Inflicted 6709 | . 936 1524 2934 305 . . . . 110 94 362 444 Guns 3209 | . 936 1189 1069 15 . . . . . . . . Cannons 1512 | . . 62 1450 . . . . . . . . . Explosions 1109 | . . 273 415 . . . . . . . 212 209 Melee 879 | . . . . 290 . . . . 110 94 150 235 Ramming . | . . . . . . . . . . . . . Kinetic 1750 | . 346 458 931 15 . . . . . . . . Thermal 1996 | . 590 178 1228 . . . . . . . . . Explosive 606 | . . 191 415 . . . . . . . . . Electromagnetic 1478 | . . 697 360 . . . . . . . 212 209 Impact . | . . . . . . . . . . . . . Slashing 490 | . . . . 290 . . . . . . 150 50 Piercing 389 | . . . . . . . . . 110 94 . 185 Highest Corruption 2 | . . . . 2 . . . . . . . . Average Corruption 1 | . . . . 1 . . . . . . . . Corruption Purged 2 | . . . . 2 . . . . . . . . Effects 5 | . . . . 5 . . . . . . . . Message Errors 2 | . . . . 2 . . . . . . . . Energy Discharges 2 | . . . . 2 . . . . . . . . Data Loss (minor) 1 | . . . . 1 . . . . . . . . Overload Shots . | . . . . . . . . . . . . . Overflow Damage 147 | . . 7 56 . . . . . . . 1 83 Projectiles 32 | . . 1 31 . . . . . . . . . Explosions 50 | . . 6 25 . . . . . . . 1 18 Melee 65 | . . . . . . . . . . . . 65 Knockbacks . | . . . . . . . . . . . . . Impact . | . . . . . . . . . . . . . Kinetic . | . . . . . . . . . . . . . Secondary . | . . . . . . . . . . . . . Self-Inflicted Damage 60 | . . . 60 . . . . . . . . . Shots 1 | . . . 1 . . . . . . . . . Rammed . | . . . . . . . . . . . . . Targets Rammed . | . . . . . . . . . . . . . Kicked . | . . . . . . . . . . . . . Crushed . | . . . . . . . . . . . . . Highest Temperature 229 | . 229 18 106 . . . . . . . . 10 Average Temperature 37 | . 54 10 21 . . . . . . . . 6 Received Heat Transfer 1248 | . 219 159 756 9 . . . . 18 . 27 60 Siege Activations . | . . . . . . . . . . . . . Robots Corrupted 1 | . . . . . . . . . . . 1 . Combat Hostiles 1 | . . . . . . . . . . . 1 . Parts Fried 2 | . . 2 . . . . . . . . . . Impact Corruptions . | . . . . . . . . . . . . . Robots Melted . | . . . . . . . . . . . . . Combat Hostiles . | . . . . . . . . . . . . . Parts Melted 4 | . 2 1 1 . . . . . . . . . Heat Transferred 4153 | . 1597 336 2220 . . . . . . . . . Parts Sabotaged . | . . . . . . . . . . . . . Parts Stolen . | . . . . . . . . . . . . . Parts Stripped . | . . . . . . . . . . . . . Power Chain Reactions 1 | . . 1 . . . . . . . . . . Missiles Intercepted . | . . . . . . . . . . . . . Alert | -11 -10 -9 -8 -7 -7 -7 -7 -6 -6 -6 -6 -6 ------- Run | Scr Mat Mat Mat Fac Low Low Dat Pro Fac Low Low Zio Peak Influence 423 | . 212 317 423 150 . . . . 89 . . . Average Influence 127 | . 60 79 257 51 . . . . 29 . . . Maximum Alert Level 2 | . 1 1 2 . . . . . . . . . Low Security (%) 69 | 100 95 91 21 100 . . . . 100 . . . Level 1 27 | . 4 8 71 . . . . . . . . . Level 2 2 | . . . 7 . . . . . . . . . Level 3 . | . . . . . . . . . . . . . Level 4 . | . . . . . . . . . . . . . Level 5 . | . . . . . . . . . . . . . High Security . | . . . . . . . . . . . . . Max Security . | . . . . . . . . . . . . . Squads Dispatched 13 | . . 1 4 5 . . . . 3 . . . Investigation 6 | . . . 1 4 . . . . 1 . . . Extermination 3 | . . . . 1 . . . . 2 . . . Reinforcement 4 | . . 1 3 . . . . . . . . . Assault . | . . . . . . . . . . . . . Garrison . | . . . . . . . . . . . . . Intercept . | . . . . . . . . . . . . . Construction Impeded . | . . . . . . . . . . . . . Haulers Reinforced . | . . . . . . . . . . . . . Stealth | -11 -10 -9 -8 -7 -7 -7 -7 -6 -6 -6 -6 -6 --------- Run | Scr Mat Mat Mat Fac Low Low Dat Pro Fac Low Low Zio Distress Signals 11 | . 3 2 6 . . . . . . . . . Communications Jammed . | . . . . . . . . . . . . . Distress Signals . | . . . . . . . . . . . . . Times Spotted 131 | . 19 31 49 3 . 2 . 2 8 . 2 15 Peak Tracking Total 10 | . 4 5 8 2 . 3 . 2 4 . 2 10 Tactical Retreats 15 | . . 2 2 2 . 2 . 1 3 . 1 2 Traps | -11 -10 -9 -8 -7 -7 -7 -7 -6 -6 -6 -6 -6 ------- Run | Scr Mat Mat Mat Fac Low Low Dat Pro Fac Low Low Zio Traps Triggered 3 | . . . 2 1 . . . . . . . . Indirectly . | . . . . . . . . . . . . . Trap Hack Attempts . | . . . . . . . . . . . . . Triggered . | . . . . . . . . . . . . . Disarmed . | . . . . . . . . . . . . . Reprogrammed . | . . . . . . . . . . . . . Reused . | . . . . . . . . . . . . . Traps Extracted . | . . . . . . . . . . . . . Installed . | . . . . . . . . . . . . . Triggered . | . . . . . . . . . . . . . Machines | -11 -10 -9 -8 -7 -7 -7 -7 -6 -6 -6 -6 -6 ---------- Run | Scr Mat Mat Mat Fac Low Low Dat Pro Fac Low Low Zio Machines Disabled 6 | . . . 4 . . . . . 2 . . . Max in Single Turn 2 | . . . 2 . . . . . 1 . . . Garrison Access 1 | . . . 1 . . . . . . . . . Machines Sabotaged . | . . . . . . . . . . . . . Garrisons Compromised . | . . . . . . . . . . . . . Overloaded Fab Kills . | . . . . . . . . . . . . . Fab Network Shutdowns . | . . . . . . . . . . . . . Hacking | -11 -10 -9 -8 -7 -7 -7 -7 -6 -6 -6 -6 -6 --------- Run | Scr Mat Mat Mat Fac Low Low Dat Pro Fac Low Low Zio Machines Accessed 38 | . 3 6 6 12 . . 3 . 6 1 . 1 Terminals 26 | . 3 6 4 8 . . . . 5 . . . Fabricators 4 | . . . . 3 . . . . 1 . . . Repair Stations 2 | . . . 1 1 . . . . . . . . Recycling Units . | . . . . . . . . . . . . . Scanalyzers . | . . . . . . . . . . . . . Garrison Access 1 | . . . 1 . . . . . . . . . Total Hacks 119 | . 9 16 16 30 . . 20 . 23 1 . 4 Successful 76 | . 4 13 8 14 . . 20 . 12 1 . 4 Failed 42 | . 5 3 7 16 . . . . 11 . . . Catastrophic 6 | . 1 . 1 3 . . . . 1 . . . Database Lockouts 1 | . . . 1 . . . . . . . . . Manual 53 | . 6 9 12 14 . . . . 12 . . . Terminals 78 | . 9 16 12 22 . . . . 19 . . . Fabricators 11 | . . . . 7 . . . . 4 . . . Repair Stations 2 | . . . 1 1 . . . . . . . . Recycling Units . | . . . . . . . . . . . . . Scanalyzers . | . . . . . . . . . . . . . Garrison Access 3 | . . . 3 . . . . . . . . . Terminal Hacks 52 | . 2 6 5 7 . . 20 . 7 1 . 4 Record 12 | . . . . . . . 11 . 1 . . . Part Schematic 14 | . . . 1 2 . . 6 . 1 . . 4 Prototype ID Bank 6 | . 1 2 . . . . 3 . . . . . Open Door 1 | . . . . . . . . . . 1 . . Level Access Points 1 | . . 1 . . . . . . . . . . Branch Access Points 2 | . . . . 1 . . . . 1 . . . Fabricator Index 1 | . . . 1 . . . . . . . . . Alert Level 1 | . . . . 1 . . . . . . . . Unreport Threat 7 | . 1 2 2 1 . . . . 1 . . . Locate Traps 2 | . . 1 1 . . . . . . . . . Recall Investigation 1 | . . . . 1 . . . . . . . . Recall Extermination 2 | . . . . 1 . . . . 1 . . . Zone Layout 2 | . . . . . . . . . 2 . . . Fabricator Hacks 8 | . . . . 4 . . . . 4 . . . Load Schematic 4 | . . . . 2 . . . . 2 . . . Build 4 | . . . . 2 . . . . 2 . . . Repair Station Hacks . | . . . . . . . . . . . . . Recycling Unit Hacks . | . . . . . . . . . . . . . Scanalyzer . | . . . . . . . . . . . . . Garrison Access Hacks 1 | . . . 1 . . . . . . . . . Seal Access 1 | . . . 1 . . . . . . . . . Unauthorized Hacks 43 | . 8 15 4 8 . . . . 8 . . . Terminals 15 | . 2 7 2 3 . . . . 1 . . . Track 9 | . 1 6 2 . . . . . . . . . Botnet 6 | . 1 1 . 3 . . . . 1 . . . Fabricators . | . . . . . . . . . . . . . Repair Stations . | . . . . . . . . . . . . . Recycling Units . | . . . . . . . . . . . . . Scanalyzers . | . . . . . . . . . . . . . Garrison Access . | . . . . . . . . . . . . . Data Cores Recovered 1 | . . 1 . . . . . . . . . . Used 1 | . . 1 . . . . . . . . . . Hacking Detections 32 | . 3 5 6 12 . . . . 6 . . . Full Trace Events 4 | . . . . 3 . . . . 1 . . . Feedback Events 2 | . . . . 2 . . . . . . . . Corruption 2 | . . . . 2 . . . . . . . . Feedback Blocked . | . . . . . . . . . . . . . Robot Schematics Acquired . | . . . . . . . . . . . . . Robots Built . | . . . . . . . . . . . . . Matter . | . . . . . . . . . . . . . Time . | . . . . . . . . . . . . . Total Robot Build Rating . | . . . . . . . . . . . . . Part Schematics Acquired 14 | . . . 1 2 . . 6 . 1 . . 4 Parts Built 4 | . . . . 2 . . . . 2 . . . Matter 1060 | . . . . 424 . . . . 636 . . . Time 274 | . . . . 106 . . . . 168 . . . Total Part Build Rating 24 | . . . . 12 . . . . 12 . . . Parts Repaired . | . . . . . . . . . . . . . Time . | . . . . . . . . . . . . . Parts Recycled . | . . . . . . . . . . . . . Recycled Matter . | . . . . . . . . . . . . . Retrieved Matter . | . . . . . . . . . . . . . Retrieved Components . | . . . . . . . . . . . . . Parts Scanalyzed . | . . . . . . . . . . . . . Part Schematics Acquired . | . . . . . . . . . . . . . Parts Damaged . | . . . . . . . . . . . . . Bothacking | -11 -10 -9 -8 -7 -7 -7 -7 -6 -6 -6 -6 -6 ------------ Run | Scr Mat Mat Mat Fac Low Low Dat Pro Fac Low Low Zio Used RIF Installer . | . . . . . . . . . . . . . Robots Hacked . | . . . . . . . . . . . . . Non-combat . | . . . . . . . . . . . . . Combat . | . . . . . . . . . . . . . Robot Hacks Applied . | . . . . . . . . . . . . . Relay Couplers Released . | . . . . . . . . . . . . . Robots Rewired . | . . . . . . . . . . . . . Allies Hacked . | . . . . . . . . . . . . . Hacks Repelled . | . . . . . . . . . . . . . Allies | -11 -10 -9 -8 -7 -7 -7 -7 -6 -6 -6 -6 -6 -------- Run | Scr Mat Mat Mat Fac Low Low Dat Pro Fac Low Low Zio Total Allies 1 | . . . . . . . . 1 . . . . Largest Group 1 | . . . . . . . . 1 . . . . Highest-Rated Group 94 | . . . . . . . . 94 . . . . Highest-Rated Ally 94 | . . . . . . . . 94 . . . . Total Orders . | . . . . . . . . . . . . . Ally Attacks 8 | . . . . . . . . 8 . . . . Total Damage 138 | . . . . . . . . 138 . . . . Kills 2 | . . . . . . . . 2 . . . . Allies Corrupted . | . . . . . . . . . . . . . Allies Melted . | . . . . . . . . . . . . . Intel | -11 -10 -9 -8 -7 -7 -7 -7 -6 -6 -6 -6 -6 ------- Run | Scr Mat Mat Mat Fac Low Low Dat Pro Fac Low Low Zio Robot Analysis Total . | . . . . . . . . . . . . . Derelict Logs Recovered 2 | . . . . . . . . 1 . . . 1 Drone Launches . | . . . . . . . . . . . . . Drone Recoveries . | . . . . . . . . . . . . . Exploration | -11 -10 -9 -8 -7 -7 -7 -7 -6 -6 -6 -6 -6 ------------- Run | Scr Mat Mat Mat Fac Low Low Dat Pro Fac Low Low Zio Turns Passed 6905 | 62 944 998 1780 736 135 163 34 410 565 143 552 383 Spaces Moved 6437 | 32 362 439 888 1047 260 289 81 489 777 328 653 792 Core 2 | 2 . . . . . . . . . . . . Treads 441 | 30 362 . 49 . . . . . . . . . Legs . | . . . . . . . . . . . . . Wheels 1278 | . . 439 839 . . . . . . . . . Hover 4716 | . . . . 1047 260 289 81 489 777 328 653 792 Flight . | . . . . . . . . . . . . . Fastest Speed 40 | 50 160 130 130 42 42 42 42 42 40 40 40 40 Average Speed 69 | 153 177 135 141 42 42 42 42 42 40 40 40 40 Slowest Speed 230 | 160 180 140 230 106 42 42 42 42 105 40 100 106 Overloaded Moves . | . . . . . . . . . . . . . Propulsion Burnouts . | . . . . . . . . . . . . . Robots Hopped . | . . . . . . . . . . . . . Cave-ins Triggered . | . . . . . . . . . . . . . Exploration Rate (%) 47 | 3 41 37 67 23 51 53 69 61 19 56 60 80 Regions Visited 12 Branch Regions 7 Pre-discovered Areas 3 | . . . . . . . 1 . . . . 2 Known Exits Taken 9 | . . 1 . 1 1 1 1 1 1 1 1 . Unknown Exits Taken 3 | 1 1 . 1 . . . . . . . . . Scrap Searched 18 | . . . . . . 7 . 2 . 4 4 1 Spaces Dug 61 | . . . 2 14 . 8 . 8 15 3 8 3 Terrain Destroyed 133 | . . 10 64 14 . 8 . 8 15 3 8 3 Melee 61 | . . . 2 14 . 8 . 8 15 3 8 3 Projectile . | . . . . . . . . . . . . . AOE 72 | . . 10 62 . . . . . . . . . Actions | -11 -10 -9 -8 -7 -7 -7 -7 -6 -6 -6 -6 -6 --------- Run | Scr Mat Mat Mat Fac Low Low Dat Pro Fac Low Low Zio Total 8333 | 42 556 740 1232 1324 285 315 80 680 1004 332 915 828 Wait 1272 | 1 100 187 140 190 26 17 . 182 184 1 237 7 Move 6425 | 31 361 438 887 1046 259 288 80 488 776 327 652 792 Hop . | . . . . . . . . . . . . . Pick Up 83 | 4 18 18 15 21 . . . . 7 . . . Fast Attach 38 | 6 3 2 12 6 . . . . 5 . 4 . Attach 26 | . 1 2 10 7 . . . . 2 . . 4 Detach 5 | . . . 1 1 . . . . . . . 3 Swap 57 | . 4 9 27 7 . 1 . 1 1 . 6 1 Drop 110 | . 8 24 35 27 . . . 1 11 . 3 1 Fire 235 | . 61 60 103 2 . . . . . . 4 5 Melee 82 | . . . 2 17 . 9 . 8 18 4 9 15 Ram . | . . . . . . . . . . . . . Kick . | . . . . . . . . . . . . . Crush . | . . . . . . . . . . . . . Escape Stasis . | . . . . . . . . . . . . . Rewire . | . . . . . . . . . . . . . Trap . | . . . . . . . . . . . . . Miscellaneous . | . . . . . . . . . . . . . Route ------- -11/Scrapyard -10/Materials -9/Materials (discovered 3 exits: *Mat x3) -8/Materials (discovered 3 exits: *Fac x2 / [*Sto]) -7/Factory (discovered 4 exits: *Fac x2 / *Low x2) -7/Lower Caves (discovered 2 exits: *Low / *Zio) -7/Lower Caves -7/Data Miner -6/Proximity Caves -6/Factory (discovered 2 exits: *Low x2) -6/Lower Caves -6/Lower Caves -6/Zion (discovered 2 exits: [*Dee] / [*Pro]) History --------- Turn | Location | Event 31 | -11/Scrapyard | Discovered new exit (range 16) 63 | -11/Scrapyard | Entered Materials 315 | -10/Materials | Build established: Mutant 988 | -10/Materials | Discovered new exit (range 10) 1007 | -10/Materials | Entered another Materials area 1007 | -9/Materials | Evolved 2 slots: Propulsion x1, Utility x1 1988 | -9/Materials | Identified exit to Materials 2005 | -9/Materials | Entered another Materials area 2005 | -8/Materials | Evolved 2 slots: Utility x2 2200 | -8/Materials | Discovered new exit (range 7) 2280 | -8/Materials | Lost 3 parts (1p2w) 2562 | -8/Materials | Discovered new exit (range 16) 2609 | -8/Materials | Build established: Scavenger-Mutant 2714 | -8/Materials | Central database locked down 3045 | -8/Materials | Discovered new exit (range 9) 3379 | -8/Materials | Destroyed 8 combat bots 3491 | -8/Materials | Build established: Mutant 3785 | -8/Materials | Entered Factory 3785 | -7/Factory | Evolved 2 slots: Power x1, Utility x1 4013 | -7/Factory | Discovered new exit (range 12) 4017 | -7/Factory | Identified exit to Factory 4090 | -7/Factory | Build established: Hacker-Mutant 4177 | -7/Factory | Fabricated Adv. Hacking Suite (x1) 4283 | -7/Factory | Fabricated Adv. System Shield (x1) 4323 | -7/Factory | Identified exit to Lower Caves 4362 | -7/Factory | Discovered exit to Factory (range 4) 4521 | -7/Factory | Entered Lower Caves 4542 | -7/Lower Caves | Spotted B-75 Beast 4563 | -7/Lower Caves | A Derelict revealed a hidden shortcut to a safe place 4566 | -7/Lower Caves | Identified exit to Zion 4606 | -7/Lower Caves | Encountered a Warlord checkpoint 4652 | -7/Lower Caves | Discovered new exit (range 8) 4655 | -7/Lower Caves | Identified exit to Lower Caves 4656 | -7/Lower Caves | Entered another Lower Caves area 4816 | -7/Lower Caves | Discovered new exit (range 7) 4819 | -7/Lower Caves | Identified exit to Data Miner 4819 | -7/Lower Caves | Entered Data Miner 4819 | -7/Data Miner | Discovered new exit (range 6) 4827 | -7/Data Miner | Met Data Miner 4835 | -7/Data Miner | Learned location of Section 7 (-2) 4835 | -7/Data Miner | Acquired the access code to Warlord's prototype stash 4842 | -7/Data Miner | Received God Mode back door access code from Data Miner 4853 | -7/Data Miner | Identified exit to Proximity Caves 4853 | -7/Data Miner | Entered Proximity Caves 4981 | -6/Proximity Caves | Escorted by Enhanced Grunt 5058 | -6/Proximity Caves | Learned Factory stockpile data 5260 | -6/Proximity Caves | Discovered exit to Factory (range 5) 5263 | -6/Proximity Caves | Entered Factory 5263 | -6/Factory | Evolved 2 slots: Propulsion x1, Utility x1 5373 | -6/Factory | Identified exit to Lower Caves 5398 | -6/Factory | Fabricated Plasma Sword? 5491 | -6/Factory | Fabricated Plasma Sword (x1) 5828 | -6/Factory | Entered Lower Caves 5955 | -6/Lower Caves | Discovered new exit (range 12) 5970 | -6/Lower Caves | Identified exit to Lower Caves 5971 | -6/Lower Caves | Entered another Lower Caves area 6012 | -6/Lower Caves | Attracted the attention of an 0b10 checkpoint 6106 | -6/Lower Caves | Build established: Mutant 6369 | -6/Lower Caves | Found Alien Artifact 6369 | -6/Lower Caves | Identified Core Expander 6369 | -6/Lower Caves | Installed Core Expander, added new Weapon slot 6519 | -6/Lower Caves | Discovered exit to Zion (range 13) 6523 | -6/Lower Caves | Entered Zion 6536 | -6/Zion | Given A8's code to call for help 6544 | -6/Zion | Discovered new exit (range 11) 6562 | -6/Zion | Learned location of Extension (-5) 6795 | -6/Zion | Discovered new exit (range 5) 6795 | -6/Zion | Saw the warning signs outside the Deep Caves entrance 6840 | -6/Zion | Attacked by Zionites 6906 | -6/Zion | Self-destructed Last Messages --------------- 06845_ Airjet destroyed. 06845_ Dropped EMP Blaster. 06848_ Adv. Melee Analysis Suite destroyed. 06850_ XO-V1K(c) calibrates the Conduit Teleporter. 06852_ 13-6XP(z) pulls a Mak. Hammer out of the Twisted Machinery. 06854_ Plasma Sword follow-up attack on 13-6XP(z). 06854_ 13-6XP(z) destroyed. 06858_ Lgt. Nuclear Core destroyed. 06872_ 00-A50(z) pulls a Mak. Shrapnel Gun out of the Twisted Machinery. 06874_ LG-7J9(z) destroyed. 06879_ EX-24F(z) IFF system glitched. 06887_ Destroyed Enh. Flamer. 06887_ PW-3MJ(M) destroyed. 06887_ Lgt. Nuclear Core destroyed. 06890_ Biomechanical Wings destroyed. 06891_ NN-FIM(M) IFF system glitched. 06893_ NN-FIM(M) misfires. 06896_ OI-NWV(z) pulls a Mak. Spear out of the Twisted Machinery. 06899_ OG-IBB(z) pulls a Mak. Shrapnel Gun out of the Twisted Machinery. 06904_ Aerolev Unit destroyed. Map ----- +----------------------------------------------------+ | ????###"" """""" """#"" | | ??????##" """#"" ""##""""""" | | ??????#"" "####" """"""""""""""""" | | ??????#""""" """"""#"#" """""#""""""#"""""" | | ??????##"##" """"""##"" ""#"#######"#####"" | | ???????###"" """"##"" ""####?????###??#""" | | ?????????#"""" ""#"""" """##???????????##""" | | ?????????#"#"" "" """ """"#????????????##""" | | ??????######"" """##????????????#""# | | ?????##""""""" "" "#"#????????????##"# | | ######""""""" "" z ""#???????????????#? | | #"""""" " """ ""###??????????????? | | """""""" "" """"#??????????????? | | """" "" ""##??????????????? | | ! M = " """#??????????????? | | [% !%= M %= "" """##??????????????? | | """"= *z "" """##???????????????? | | """""" "" """"##????????????????? | | ""###"""""""" " """"#?????????????????? | | ""##""###""#""" #"""#?????????????????? | | ""##"####"""""" #"###?????????????????? | | ""###??#"" I ""###?????????????????? | | ""#????#"" """"#?????????????????? | | ""#????#"" """"#?????????????????? | | "##????#"" """##????????###??????? | | "#?????##" @ """#????????? ! ??????? | | ##??????#"""" #"##?????????" ""?????? | | #??????##""""" #""#?????????" ?????? | | #??????#"""""" """#???????#?" "?????? | | #?????##""" "" """????????""# ###?##? | | #?????#"""" """????###""" # ##""# | | ###????###""" """??####"""" """" | | ???????#""" z ""####"#"""" #" " | | ??????##"" """""##"" """" | | ??????#"" """ """""""" """" | | ?????#"#" """" | | ??????#""""" | | ??????##"##"" "" | | ???????#??##""""" """" "" "" | | ??????????#""""""" """""""" "" | | ??????????##"""""" """"""#"" """ | | ??????????#"" "" "" """"""" | | ??????????##"" "" """"""" """ | | ???????????#""" "" """""" """"""""" | | ???????????#"""" "" """"##" "###""#"# | | ????????#"##"""" ""#??#"" """#"""### | | ????????##"""" ""#?##"" """#"#"""" | | ????????#""" """##?##"" """""""""" | | ???????#""" """#???#""" | | ???????#"" ""#"???##"" | +----------------------------------------------------+ Best States ------------- Heat Dissipation 56 Energy Generation 25 Energy Capacity 350 Matter Stores 300 Matter Capacity 300 Sight Range 16 Robot Scan Range 20 Terrain Scan Density 10 Armor Coverage 225 Evasion (%) 57 Melee Accuracy 16 Recoil Reduction 2 Offensive Hacking 24 Item Schematics ----------------- Adv. Sensor Array | -8/Materials | Hacked Adv. Hacking Suite | -7/Factory | Hacked Adv. System Shield | -7/Factory | Hacked Combat Drone Bay | -7/Data Miner | Free Lgt. Regenerative Plating | -7/Data Miner | Free Cmb. Gravmag System | -7/Data Miner | Free Exp. Sensor Array | -7/Data Miner | Free Exp. Terrain Scan Processor | -7/Data Miner | Free Plasma Sword | -7/Data Miner | Free Force Lance | -6/Factory | Hacked Barrage Gun | -6/Zion | Free Battle Cannon | -6/Zion | Free Flamer | -6/Zion | Free Ripper | -6/Zion | Free Robot Schematics ------------------ None Fabricated ------------ Adv. Hacking Suite | x1 | -7/Factory Adv. System Shield | x1 | -7/Factory Plasma Sword | x1 | -6/Factory Plasma Sword | x1 | -6/Factory Alien Tech Used ----------------- Core Expander Achievements -------------- None Challenges ------------ None Game ------ Seed StormRegenerativeProjector Manual? 0 Play Time 01:05:48 Cumulative 690.5 hours Start 2020.02.04 @ 11:29:45 End 2020.02.04 @ 12:49:29 Sessions 3 Manual Loads 0 Difficulty Rogue Special Mode None Game No. 633 Rogue 593 Adventurer 40 Explorer 0 Win Type - Total 60 Types 44/0/14/2/0/0/0 Lore% 89 Gallery% 92 Achievement% 71 Wizard Run 0 Options --------- ASCII 0 Keyboard 0 Movement Numpad Keybinds 0 Fullscreen 0 Font 16/Terminus Map View 76x50 Tactical HUD 1 Map Filters NONE Filters NONE Steam 1 RUN: 849eb9e2-927f-401e-8b57-2a5c0fef27ec